Cogmind - Beta 15 @@@ ROGUE MODE // 2025.07.07 @ 23:04:15 Player: Skysub Result: Destroyed by Piercing Trap Performance ------------- Evolutions (0) 0 Regions Visited (2) 400 Robots Destroyed (21) 105 Value Destroyed (495) 495 Prototype IDs (0) 0 Alien Tech Used (0) 0 Bonus (0) 0 TOTAL SCORE: 1000 Bonus ------- None Cogmind --------- Core Integrity 0/250 Matter 300/300 Energy 99/100 System Corruption 0% Temperature Cool (0) Movement Core (300) Ox5 Location -10/Subcaves Parts ------- > --- POWER (1) -------- (None) > --- PROPULSION (2) --- (None) > --- UTILITY (2) ------ Small Storage Unit Structural Scanner > --- WEAPON (2) ------- Subdweller Machine Gun Subdweller Shrapnel Launcher > --- INVENTORY (8) ---- Flightbrick Makeshift System Shield Subdweller Machine Gun Ripper Peak State ------------ > --- POWER ------------ (None) > --- PROPULSION ------- (None) > --- UTILITY ---------- Small Storage Unit Structural Scanner > --- WEAPON ----------- Subdweller Machine Gun Subdweller Shrapnel Launcher > --- INVENTORY -------- Flightbrick Makeshift System Shield Battle Rifle Subdweller Machine Gun Ripper [Rating: 10] Favorites ----------- Power Light Ion Engine Engine Light Ion Engine Propulsion Light Treads Treads Light Treads Wheel Subdweller Monowheel Utility Small Storage Unit Device Structural Scanner Storage Small Storage Unit Protection Light Armor Plating Weapon Small Laser Energy Gun Small Laser Ballistic Gun Assault Rifle Launcher Grenade Launcher Special Weapon Mining Laser Build | -11 -10 -10 ------- Run | Yrd Mat Sub Slots Evolved . | . . . Power . | . . . Propulsion . | . . . Utility . | . . . Weapon . | . . . Parts Attached 20 | 6 4 10 Power 3 | 1 . 2 Engine 3 | 1 . 2 Core . | . . . Reactor . | . . . Propulsion 4 | 2 . 2 Treads 2 | 2 . . Leg . | . . . Wheel 2 | . . 2 Hover . | . . . Flight . | . . . Utility 4 | 1 2 1 Device 2 | . 1 1 Storage 1 | 1 . . Processor . | . . . Hackware . | . . . Protection 1 | . 1 . Artifact . | . . . Weapon 9 | 2 2 5 Energy Gun 2 | 2 . . Energy Cannon . | . . . Ballistic Gun 3 | . 2 1 Ballistic Cannon . | . . . Launcher 3 | . . 3 Special Weapon 1 | . . 1 Impact Weapon . | . . . Slashing Weapon . | . . . Piercing Weapon . | . . . Special Melee Weapon . | . . . Unidentified Prototypes . | . . . Parts Lost 11 | . . 11 Power 3 | . . 3 Propulsion 3 | . . 3 Utility 1 | . . 1 Weapon 4 | . . 4 Highest Loss Streak 7 | . . 7 To Critical Strikes . | . . . Average Backups 7 | 1 7 7 Power . | . 1 . Propulsion . | . 1 . Utility 1 | . 1 2 Weapon 3 | . 3 4 Tool/Special . | . . . Unused Backups 8 | . . 8 Power . | . . . Propulsion . | . . . Utility 2 | . . 2 Weapon 6 | . . 6 Tool/Special . | . . . Average Slot Usage (%) 94 | . 99 85 Engine 12 | . 14 10 Treads 23 | . 28 14 Wheel 2 | . . 7 Device 4 | . 2 8 Storage 14 | . 14 14 Protection 8 | . 10 4 Energy Gun 16 | . 20 9 Ballistic Gun 9 | . 7 11 Launcher 1 | . . 4 Peak Build Rating 10 | 6 7 10 Average Rating 6 | 5 6 7 On Entrance 4 | . 6 7 Naked Turns . | . . . Heaviest Build 18 | 10 14 18 Greatest Support 40 | 40 40 40 Greatest Overweight (x) 5 | . . 5 Average Overweight (x) . | . . . Largest Inventory Capacity 8 | 8 8 8 Average Capacity 7 | 7 8 8 Most Carried 8 | 3 8 8 Average Carried 7 | 1 7 7 Final Capacity 8 | 8 8 8 Final Carried 8 | 3 8 7 Class Distribution -------------------- 100% | Mutant Dominant Class ---------------- Mutant | -10/Materials Mutant | -10/Subcaves Resources | -11 -10 -10 ----------- Run | Yrd Mat Sub Matter Collected 533 | 215 146 172 Remotely . | . . . Salvage Created 563 | 107 265 191 Parts 51 | 4 33 14 Haulers Intercepted . | . . . Recyclers Shooed . | . . . Parts Field Recycled . | . . . Retrieved Matter . | . . . Parts Self-Destructed 4 | . . 4 Prevented . | . . . Kills | -11 -10 -10 ------- Run | Yrd Mat Sub Combat Hostiles Destroyed 17 | . 10 7 Guns 12 | . 10 2 AOE 5 | . . 5 Classes Destroyed 7 | 3 3 1 Worker 1 | 1 . . Builder 1 | . 1 . Tunneler 1 | 1 . . Recycler 1 | 1 . . Swarmer 6 | . 6 . Grunt 4 | . 4 . Subdweller 7 | . . 7 Best Kill Streak 3 | 2 3 3 Combat Bots Only 3 | . 3 3 Max Kills in Single Turn 3 | 1 1 3 Gunslinging 1 | . . 1 Exploded 3 | . . 3 Melee . | . . . Uniques/NPCs Destroyed . | . . . Combat | -11 -10 -10 -------- Run | Yrd Mat Sub Hostile Shots Fired 117 | . 67 50 Missed 36 | . 23 13 Hits 81 | . 44 37 Projectile 81 | . 44 37 Damage Taken 1312 | . 433 879 Core 260 | . 67 193 Absorbed by Shields . | . . . Core Remaining (%) 100 | 100 . . Volleys Fired 63 | 11 32 20 Largest 2 | 2 2 2 Hottest 100 | 80 80 100 Shots Fired 121 | 22 64 35 Gun 116 | 22 64 30 Cannon . | . . . Launcher 4 | . . 4 Special 1 | . . 1 Kinetic 33 | . 16 17 Thermal 85 | 22 48 15 Explosive 3 | . . 3 Electromagnetic . | . . . Robot Hit Streak 19 | 7 9 19 Robot Miss Streak 3 | 2 3 1 Penetration Max . | . . . Secondary Targets 3 | . 2 1 Max Gunslinging Chain 1 | . 1 1 Shots Hit Robots 80 | 14 34 32 Core Hits 30 | 4 15 11 Critical Kills . | . . . Critical Parts Destroyed . | . . . Critical Strikes 1 | . . 1 Destroy 1 | . . 1 Melee Attacks . | . . . Impact . | . . . Slashing . | . . . Piercing . | . . . Sneak Attacks . | . . . Combat Hostiles . | . . . Follow-up Attacks . | . . . Damage Inflicted 1139 | 155 403 581 Guns 696 | 153 401 142 Cannons . | . . . Explosions 439 | . . 439 Melee . | . . . Ramming 4 | 2 2 . Kinetic 362 | . 105 257 Thermal 514 | 153 296 65 Explosive 259 | . . 259 Electromagnetic . | . . . Impact . | . . . Slashing . | . . . Piercing . | . . . Highest Corruption . | . . . Average Corruption . | . . . Corruption Purged . | . . . Corruption Blocked . | . . . Overload Shots . | . . . Overflow Damage . | . . . Projectiles . | . . . Explosions . | . . . Melee . | . . . Knockbacks . | . . . Impact . | . . . Kinetic . | . . . Secondary . | . . . Self-Inflicted Damage 26 | . . 26 Shots 1 | . . 1 Rammed 4 | 2 2 . Targets Rammed 4 | 2 2 . Kicked . | . . . Crushed . | . . . Highest Temperature 171 | 144 171 . Average Temperature 71 | 62 73 . Received Heat Transfer 288 | . 162 126 Siege Activations . | . . . Martial Activations . | . . . Shielding Activations . | . . . Robots Disrupted . | . . . Combat Hostiles . | . . . Robots Corrupted . | . . . Combat Hostiles . | . . . Parts Fried . | . . . Impact Corruptions . | . . . Robots Melted . | . . . Combat Hostiles . | . . . Parts Melted 3 | 1 1 1 Heat Transferred 1175 | 350 675 150 Parts Sabotaged . | . . . Parts Stolen . | . . . Parts Stripped . | . . . Power Chain Reactions . | . . . Alert | -11 -10 -10 ------- Run | Yrd Mat Sub Maximum Alert Level . | . . . Low Security (%) 100 | 100 100 . Level 1 . | . . . Level 2 . | . . . Level 3 . | . . . Level 4 . | . . . Level 5 . | . . . High Security . | . . . Max Security . | . . . Peak Influence 74 | 5 74 . Initial . | . . . Average 23 | 1 26 . Influence Increases 321 | 15 306 . Destroy 0b10 Robot/C 200 | . 200 . Destroy 0b10 Robot/NC 20 | 15 5 . Destroy Leader 40 | . 40 . Select Force Hacks 30 | . 30 . Destroy Structure 1 | . 1 . Lose Combat Pursuer 30 | . 30 . Influence Decreases 321 | 15 255 51 Entered New Map 25 | . . 25 Time Decay 296 | 15 255 26 Squads Dispatched 3 | . 3 . Investigation 2 | . 2 . Extermination . | . . . Reinforcement 1 | . 1 . Assault . | . . . Garrison . | . . . Intercept . | . . . Searches Triggered . | . . . Construction Impeded . | . . . Haulers Reinforced . | . . . Active Scanning Responses . | . . . Cargo Convoy Interrupts . | . . . Stealth | -11 -10 -10 --------- Run | Yrd Mat Sub Distress Signals . | . . . Communications Jammed . | . . . Distress Signals . | . . . Times Spotted 31 | . 24 7 Peak Tracking Total 5 | . 5 3 Tactical Retreats 2 | . 2 . Traps | -11 -10 -10 ------- Run | Yrd Mat Sub Traps Triggered 5 | . 3 2 Indirectly . | . . . Trap Hack Attempts . | . . . Triggered . | . . . Disarmed . | . . . Reprogrammed . | . . . Reused . | . . . Traps Extracted . | . . . Installed . | . . . Triggered . | . . . Machines | -11 -10 -10 ---------- Run | Yrd Mat Sub Machines Disabled . | . . . Max in Single Turn . | . . . Machines Repaired . | . . . Machines Dismantled . | . . . Machines Sabotaged . | . . . Overloaded Fab Kills . | . . . Hacking | -11 -10 -10 --------- Run | Yrd Mat Sub Machines Accessed 1 | . 1 . Terminals . | . . . Fabricators . | . . . Repair Stations . | . . . Recycling Units 1 | . 1 . Scanalyzers . | . . . Garrison Access . | . . . Total Hacks 2 | . 2 . Successful 2 | . 2 . Failed . | . . . Catastrophic . | . . . Database Lockouts . | . . . Manual 1 | . 1 . Terminals . | . . . Fabricators . | . . . Repair Stations . | . . . Recycling Units 2 | . 2 . Scanalyzers . | . . . Garrison Access . | . . . Terminal Hacks . | . . . Fabricator Hacks . | . . . Repair Station Hacks . | . . . Recycling Unit Hacks 1 | . 1 . Report Inventory 1 | . 1 . Scanalyzer . | . . . Garrison Access Hacks . | . . . Unauthorized Hacks 1 | . 1 . Terminals . | . . . Fabricators . | . . . Repair Stations . | . . . Recycling Units 1 | . 1 . Tunnel 1 | . 1 . Scanalyzers . | . . . Garrison Access . | . . . Data Cores Recovered . | . . . Used . | . . . Hacking Detections . | . . . Full Trace Events . | . . . Feedback Events . | . . . Feedback Blocked . | . . . Robot Schematics Acquired . | . . . Robots Built . | . . . Authchips . | . . . Time . | . . . Total Robot Build Rating . | . . . Part Schematics Acquired . | . . . Parts Built . | . . . Authchips . | . . . Time . | . . . Total Part Build Rating . | . . . Parts Repaired . | . . . Time . | . . . Parts Recycled . | . . . Recycled Matter . | . . . Retrieved Matter . | . . . Retrieved Components . | . . . Parts Scanalyzed . | . . . Part Schematics Acquired . | . . . Parts Damaged . | . . . Bothacking | -11 -10 -10 ------------ Run | Yrd Mat Sub Used RIF Installer . | . . . Robots Hacked . | . . . Non-combat . | . . . Combat . | . . . Robot Hacks Applied . | . . . Relay Couplers Released . | . . . Fabnet Peak Effective % . | . . . Robots Rewired . | . . . Allies Hacked . | . . . Hacks Repelled . | . . . Allies | -11 -10 -10 -------- Run | Yrd Mat Sub Total Allies . | . . . Largest Group . | . . . Highest-Rated Group . | . . . Highest-Rated Ally . | . . . Total Orders . | . . . Ally Attacks . | . . . Total Damage . | . . . Kills . | . . . Allies Corrupted . | . . . Allies Melted . | . . . Intel | -11 -10 -10 ------- Run | Yrd Mat Sub Active Infowar (turns) 492 | . 193 299 Structural 492 | . 193 299 Robot Analysis Total . | . . . Derelict Logs Recovered 1 | . . 1 Drone Launches . | . . . Drone Recoveries . | . . . Exploration | -11 -10 -10 ------------- Run | Yrd Mat Sub Turns Passed 1517 | 122 892 503 Spaces Moved 859 | 49 474 336 Core 29 | 3 . 26 Treads 619 | 46 474 99 Legs . | . . . Wheels 211 | . . 211 Hover . | . . . Flight . | . . . Fastest Speed 50 | 50 160 80 Average Speed 145 | 153 160 124 Slowest Speed 300 | 160 160 300 Overloaded Moves . | . . . Propulsion Burnouts . | . . . Robots Hopped . | . . . Potential Cave-ins . | . . . Cave-ins Triggered . | . . . Exploration Rate (%) 37 | 5 81 26 Regions Visited 2 Branch Regions 1 Pre-discovered Areas 2 | . 1 1 Known Exits Taken . | . . . Unknown Exits Taken 2 | 1 1 . Scrap Searched 10 | . . 10 Spaces Dug . | . . . Terrain Destroyed 26 | . . 26 Melee . | . . . Projectile . | . . . AOE 26 | . . 26 Terrain Rammed . | . . . Walls Destroyed . | . . . Machines Disabled . | . . . Actions | -11 -10 -10 --------- Run | Yrd Mat Sub Total 998 | 70 540 388 Wait 20 | . 20 . Move 857 | 48 473 336 Hop . | . . . Pick Up 18 | 3 5 10 Fast Attach 12 | 6 4 2 Attach 7 | . . 7 Detach 1 | . . 1 Swap 6 | . 3 3 Drop 9 | . 1 8 Fire 63 | 11 32 20 Melee . | . . . Ram . | . . . Kick . | . . . Crush 4 | 2 2 . Escape Stasis . | . . . Rewire 1 | . . 1 Trap . | . . . Miscellaneous . | . . . Route ------- -11/Scrapyard -10/Materials (discovered 5 exits: [*Mat x2] / [*Min x2] / [*Sub]) -10/Subcaves (discovered 1 exit: [*Mat]) History --------- Turn | Location | Event 29 | -11/Scrapyard | Discovered new exit (range 16) 123 | -11/Scrapyard | Entered Materials 123 | -10/Materials | Discovered new exit (range 14) 304 | -10/Materials | Build established: Mutant 311 | -10/Materials | Discovered new exit (range 11) 550 | -10/Materials | Discovered new exit (range 10) 796 | -10/Materials | Discovered new exit (range 16) 967 | -10/Materials | Discovered new exit (range 10) 1015 | -10/Materials | Entered Subcaves 1016 | -10/Subcaves | Shifting Twisted Machinery released Sub. Machine Gun 1018 | -10/Subcaves | Shifting Twisted Machinery released Sub. Optics 1223 | -10/Subcaves | Discovered new exit (range 16) 1320 | -10/Subcaves | Disturbed a concealed Subdweller 1335 | -10/Subcaves | Disturbed a concealed Subdweller 1336 | -10/Subcaves | Core integrity fell below 50% 1385 | -10/Subcaves | Lost 7 parts (1p2n1u3w) 1475 | -10/Subcaves | A Subdweller sparked back to life 1475 | -10/Subcaves | A Subdweller sparked back to life 1475 | -10/Subcaves | A Subdweller sparked back to life 1477 | -10/Subcaves | Core integrity fell below 20% 1498 | -10/Subcaves | Found Prototype Flight Unit 1513 | -10/Subcaves | Lost 3 parts (1p1n1w) 1518 | -10/Subcaves | Destroyed by Piercing Trap Last Messages --------------- 01467_ An expanding cloud of shrapnel blasts out in all directions. 01474_ Attempting to rewire 9O-ZH4(R). 01474_ 9O-ZH4(R) is broken beyond repair. 01475_ 1A-PQ6(R) creaks and sparks as it begins to move. 01475_ 4P-WIF(R) creaks and sparks as it begins to move. 01475_ 9O-ZH4(R) creaks and sparks as it begins to move. 01476_ Grenade Launcher destroyed. 01478_ Wheel destroyed. 01482_ Sub. Power Source destroyed. 01485_ 4P-WIF(R) destroyed. 01485_ 1A-PQ6(R) destroyed. 01485_ 9O-ZH4(R) destroyed. 01494_ Dropped Structural Scanner. 01495_ Dropped Sub. Optics. 01498_ Acquired Prototype Flight Unit. 01499_ Dropped Battle Rifle. 01500_ Acquired 27 matter. 01518_ Triggered Piercing Trap. 01518_ Spikes shoot up from the floor. 01518_ Critical hit (Impale). Map ----- +----------------------------------------------------+ | | | | | | | | | | | | | | | | | ?????????????????????????????????????????????????? | | ?????????????????????????????????????????????????? | | ?????????????????????????????????????????????????? | | ???????????????????????????????????????########### | | ??????????????????????????????????????############ | | ??????????????????????????????????????###% %|" " | | ??????????????????????????????????????##% | "" | | ??????????????????????????????????????## "" | | ??????????????????????????????????????## [% & | | ??????????????????????????????????????## ""% ! "" | | ??????????????????????????????????????#####]""]"## | | ??????????????????????????????????????############ | | ?????????????????????????????????????????## # # | | ????????###???????????????################# | | ???????#############???#################### = | | ???????### #########??###### ## # # ## ### | | ???????## # ##?#### ### "!= # | | ???????????? ###### @ ## " | | ???????????# # #####; ## | | ????????? ##### !&"" ^ # # | | ?????? ### " &!&%& ;# ##### | | ??? * %%[! ;### ####### | | ??? # &; ! ;#### #####?##### ## | | ??? #### "< ;; ###########???######### | | ?????? ### &;## ^ ######???????####### | | ?????????## #### ;;# ##?????????????????? | | ?????????## ######### ^ ##?????????????????? | | ????????? #### ?####### ##?????????????????? | | ??????? ########???????## ###?????????????????? | | ?????? ####?#####???????# ####?????????????????? | | ?????? ####???????????????? ###??????????????????? | | ???????????????????????????%"#???????????????????? | | ??????????????????????????? ????????????????????? | | ???????????????????????????% ????????????????????? | | ???????????????????????????? ????????????????????? | | ?????????????????????????????????????????????????? | | ?????????????????????????????????????????????????? | | ?????????????????????????????????????????????????? | | ?????????????????????????????????????????????????? | | ?????????????????????????????????????????????????? | | ?????????????????????????????????????????????????? | | ?????????????????????????????????????????????????? | +----------------------------------------------------+ Best States ------------- Heat Dissipation 25 Energy Generation 15 Energy Capacity 250 Matter Stores 300 Matter Capacity 300 Sight Range 16 Terrain Scan Density 10 Armor Coverage 150 Evasion (%) 44 Recoil Reduction 2 Item Schematics ----------------- None Robot Schematics ------------------ None Fabricated ------------ Nothing Repaired ---------- Nothing Alien Tech Used ----------------- None Achievements -------------- None Challenges ------------ None Game ------ Seed AerolevAmuletPower Manual? 0 Play Time 00:09:14 Cumulative 146.1 hours Start 2025.07.07 @ 22:57:55 End 2025.07.07 @ 23:04:15 Sessions 1 Manual Loads 0 Difficulty Rogue Special Mode None Game No. 160 Rogue 160 Adventurer 0 Explorer 0 Win Type - Total 3 Types 1/0/0/1/0/0/0/0/0/1 Lore% 64 Gallery% 60 Achievement% 53 Wizard Run 0 Options --------- Layout 1 ASCII 0 Keyboard 1 Movement Numpad Keybinds 0 Fullscreen 1 Font 32/SmallcapsGlow Map View 77x35 Zoom Use 0% Tactical HUD 1 Map Filters NONE Filters NONE Steam 1 RUN: 4d74dc5e-2559-49e1-870d-5a0622a61076